Workbook

Sheet Pasiūlymas
A1: Perkančioji organizacija, kuriai teikiamas pasiūlymas: | C1: VŠĮ Kauno klinikinė ligoninė
B3: PASIŪLYMAS
B4: Marlės ir bintų pirkimas
A6: Data: | B6: 2018-11-27
A7: Nr.: | B7: 18/11-27.
A8: Vieta: | B8: Panevėžys
A10: Tiekėjo pavadinimas /Jeigu dalyvauja ūkio subjektų grupė, surašomi visi dalyvių pavadinimai/ | C10: A.Zapalskio IĮ "Azas"
A11: Įmonės kodas /Jeigu dalyvauja ūkio subjektų grupė, surašomi visi dalyvių kodai/ | C11: 147838431.
A12: PVM mokėtojo kodas /Jeigu dalyvauja ūkio subjektų grupė, surašomi visi dalyvių kodai/ | C12: LT478384314
A13: Banko pavadinimas, banko kodas, sąskaitos Nr. | C13: AB Swedbankas, 73000 a/s LT64730001000236840
A14: Tiekėjo adresas /Jeigu dalyvauja ūkio subjektų grupė, surašomi visi dalyvių adresai/ | C14: Tiekimo g. 2A, 35289 Panevėžys
A15: Telefono numeris | C15: 8 45 508288
A16: Fakso numeris | C16: 8 45 571361
A17: El. pašto adresas | C17: info@azas.lt
A18: Asmens, pasirašiusio pasiūlymą saugiu elektroniniu parašu, vardas, pavardė, pareigos | C18: Juozas Devižis, direktorius
A19: Asmens, įgalioto pasirašyti sutartį, vardas, pavardė, pareigos | C19: Juozas Devižis, direktorius
A23: 1. Šiuo pasiūlymu pažymime, kad sutinkame su visomis pirkimo sąlygomis, nustatytomis: 1) pirkimo skelbime, paskelbtame Viešųjų pirkimų įstatymo nustatyta tvarka; 2) pirkimo sąlygose ir kituose pirkimo dokumentuose (jų paaiškinimuose, papildymuose).
A25: Siūlomas pirkimo objektas visiškai atitinka pirkimo sąlygose nustatytus reikalavimus ir jo kaina yra:
A28: Nr. | B28: Pavadinimas | C28: Kiekis | D28: Mato vienetas | E28: Kaina be PVM | F28: Suma be PVM | G28: Siūlomi prekių gamintojas ir pavadinimas
A29: 1. | B29: Marlė
A30: 1.1. | B30: Marlė medicininė rulonais | C30: 230000 | D30: m | E30: 0.12 | F30: =E30*230000 -> 27600 | G30: Zhende Medical
A31: 1.1.1. | B31: Pagaminta iš 100% medvilnės, balinta
A32: 1.1.2. | B32: Plotis 90cm ± 5cm
A33: 1.1.3. | B33: Audimo tankumas 26x18 ± 1 . Siūlo storis 32,S
A34: 1.1.4. | B34: Perkančioji organizacija prašo pateikti šios dalies pavyzdį
E35: Suma be PVM | F35: =F30 -> 27600
E36: PVM suma | F36: =F37-F35 -> 1380
E37: Suma su PVM | F37: =F35*1.05 -> 28980
A39: 2. | B39: Marlė medicininė supakuota po 10m
A40: 2.1. | B40: Marlė medicininė supakuota po 10m | C40: 90000 | D40: m | E40: 0.14 | F40: =E40*90000 -> 12600 | G40: Shaoxing Gangfeng Hospital Products
A41: 2.1.1. | B41: Pagaminta iš 100% medvilnės, balinta
A42: 2.1.2. | B42: Plotis 90cm ± 5cm
A43: 2.1.3. | B43: Audimo tankumas 26x18 ± 1 . Siūlo storis 32,S
A44: 2.1.4. | B44: Perkančioji organizacija prašo pateikti šios dalies pavyzdį
E45: Suma be PVM | F45: =F40 -> 12600
E46: PVM suma | F46: =F47-F45 -> 630
E47: Suma su PVM | F47: =F45*1.05 -> 13230
A49: 3. | B49: Tvarstis
A50: 3.1. | B50: Tvarstis nesterilus 7m± 30cm x 14cm± 1cm | C50: 190000 | D50: vnt. | E50: 0.15 | F50: =E50*190000 -> 28500 | G50: Shaoxing Gangfeng Hospital Products
A51: 3.1.1. | B51: Pagaminta iš 100% medvilnės, balintas
A52: 3.1.2. | B52: Audimo tankumas 26x18 ± 1 . Siūlo storis 32,S
A53: 3.1.3. | B53: Perkančioji organizacija prašo pateikti šios dalies pavyzdį
E54: Suma be PVM | F54: =F50 -> 28500
E55: PVM suma | F55: =F56-F54 -> 1425
E56: Suma su PVM | F56: =F54*1.05 -> 29925
A58: 4. | B58: Tvarstis
A59: 4.1. | B59: Tvarstis nesterilus 5m± 30cm x 10cm± 1cm | C59: 50000 | D59: vnt. | E59: 0.08 | F59: =E59*50000 -> 4000 | G59: Shaoxing Gangfeng Hospital Products
A60: 4.1.1. | B60: Pagaminta iš 100% medvilnės, balintas
A61: 4.1.2. | B61: Audimo tankumas 26x18 ± 1 . Siūlo storis 32,S
A62: 4.1.3. | B62: Perkančioji organizacija prašo pateikti šios dalies pavyzdį
E63: Suma be PVM | F63: =F59 -> 4000
E64: PVM suma | F64: =F65-F63 -> 200
E65: Suma su PVM | F65: =F63*1.05 -> 4200
A67: 5. | B67: Tvarstis
A68: 5.1. | B68: Tvarstis sterilus 5m± 30cm x 10cm± 1cm | C68: 500 | D68: vnt. | E68: 0.1 | F68: =E68*500 -> 50 | G68: Shaoxing Gangfeng Hospital Products
A69: 5.1.1. | B69: Pagaminta iš 100% medvilnės, balintas
A70: 5.1.2. | B70: Audimo tankumas 26x18 ± 1 . Siūlo storis 32,S
A71: 5.1.3. | B71: Perkančioji organizacija prašo pateikti šios dalies pavyzdį
E72: Suma be PVM | F72: =F68 -> 50
E73: PVM suma | F73: =F74-F72 -> 2.5
E74: Suma su PVM | F74: =F72*1.05 -> 52.5
A76: 6. | B76: Tvarstis
A77: 6.1. | B77: Tvarstis sterilus 7m± 30cm x 14cm± 1cm | C77: 200 | D77: vnt. | E77: 0.17 | F77: =E77*200 -> 34 | G77: Shaoxing Gangfeng Hospital Products
A78: 6.1.1. | B78: Pagaminta iš 100% medvilnės, balintas
A79: 6.1.2. | B79: Audimo tankumas 26x18 ± 1 . Siūlo storis 32,S
A80: 6.1.3. | B80: Perkančioji organizacija prašo pateikti šios dalies pavyzdį
E81: Suma be PVM | F81: =F77 -> 34
E82: PVM suma | F82: =F83-F81 -> 1.7
E83: Suma su PVM | F83: =F81*1.05 -> 35.7

Sheet Subtiekėjai
A2: Sutarties vykdymui numatome pasitelkti šiuos subtiekėjus / subteikėjus / subrangovus (įrašyti visus subtiekėjus / subteikėjus / subrangovus nepriklausomai nuo tiekiamų prekių/ teikiamų paslaugų/ atliekamų darbų vertės):
A4: Subtiekėjo / subteikėjo / subrangovo (-ų) pavadinimas (-ai) | C4: Adresas | F4: Trumpas aprašymas | I4: Procentas nuo pasiūlymo kainos be PVM
A11: Jeigu pirkimo dokumentų 18 punkte numatytas subtiekimo / subteikimo / subrangos apribojimas: Mes patvirtiname, kad subtiekėjams / subteikėjams / subrangovams (tiekėjams, kuriuos pasamdysime dalies sutartyje numatytų prekių tiekimui /paslaugų teikimui / darbų atlikimui) perduodamų tiekti prekių / teikti paslaugų/ atlikti darbų dalis neviršys proc. pasiūlymo kainos be PVM.
A13: Mes patvirtiname, kad esame / nesame (nereikalingą išbraukti) laikomi asocijuotais (susijusiais) su Perkančiąja organizacija pagal Lietuvos Respublikoje galiojančių teisės aktų (Lietuvos Respublikos pelno mokesčio, Lietuvos Respublikos pridėtinės vertės mokesčio ir Lietuvos Respublikos gyventojų pajamų mokesčio įstatymų) nuostatas.
A15: Kartu su pasiūlymu pateikiami šie dokumentai:
A17: Eil.Nr. | B17: "Pateiktų skaitmeninių dokumentų (ar jų kopijų) pavadinimas (pasiūlymą sudarančių konfidencialių dokumentų pavadinimai pažymėti prierašu KONFIDENCIALU)" | H17: Prisegtos bylos (failo) pavadinimas
A18: 1. | B18: Europos bendrasis viešųjų pirkimų dokumentas (EBVPD) | H18: end_response_Azas
A19: 2. | B19: Įgaliojimai, Sertifikatai, Katalogai, Aprašymai | H19: Sert. Apr.
A25: Pasiūlymo galiojimo užtikrinimui pateikiame :
A27: (Nurodyti užtikrinimo būdą, dydį, dokumentus)
A29: Pasiūlymas galioja iki termino, nustatyto pirkimo dokumentuose. Pasiūlymo neatskiriama dalis yra (rašoma, jeigu buvo reikalauta prie pasiūlymo pridėti atitinkamą dokumentą)
A33: Tiekėjo arba jo įgalioto asmens pareigų pavadinimas | E33: Direktorius
A36: Pasirašančio asmens vardas ir pavardė | E36: Juozas Devižis
A39: **kadangi visas pasiūlymas pasirašomas saugiu elektroniniu parašu, šio dokumento atskirai pasirašyti neprivaloma.
A100: 2403 2018-09-25 13:53:28
